[Event "Early-Titled-Tuesday-Blitz-March-12-2024"]
[Site "Chess.com"]
[Date "2024.03.12"]
[Round "10"]
[White "Yeritsyaan"]
[Black "FaustinoOro"]
[Result "0-1"]
[WhiteElo "2641"]
[BlackElo "2888"]
[TimeControl "180+1"]
[EndTime "9:53:32 PDT"]
[Termination "FaustinoOro won by resignation"]

1. e4 {[%clk 0:02:59.9]} 1... e5 {[%clk 0:02:51.3]} 2. Nf3 {[%clk 0:02:59.1]}
2... Nc6 {[%clk 0:02:50.9]} 3. d4 {[%clk 0:02:58.5]} 3... exd4 {[%clk
0:02:50.6]} 4. Nxd4 {[%clk 0:02:59.4]} 4... Qf6 {[%clk 0:02:50.9]} 5. Nf3 {[%clk
0:02:58]} 5... Bc5 {[%clk 0:02:47.3]} 6. Nc3 {[%clk 0:02:54.9]} 6... Nge7 {[%clk
0:02:42.5]} 7. Nb5 {[%clk 0:02:55.5]} 7... Bb6 {[%clk 0:02:35.4]} 8. Be3 {[%clk
0:02:42.4]} 8... O-O {[%clk 0:02:08.7]} 9. Bxb6 {[%clk 0:02:40.6]} 9... cxb6
{[%clk 0:02:09.6]} 10. c3 {[%clk 0:02:35]} 10... Ng6 {[%clk 0:01:43.6]} 11. Qd6
{[%clk 0:02:25.3]} 11... Qe6 {[%clk 0:01:31.3]} 12. Qxe6 {[%clk 0:01:40.9]}
12... dxe6 {[%clk 0:01:30.5]} 13. O-O-O {[%clk 0:01:38.9]} 13... a6 {[%clk
0:01:25.9]} 14. Nd6 {[%clk 0:01:36.8]} 14... Rd8 {[%clk 0:01:17.3]} 15. g3
{[%clk 0:01:27.5]} 15... b5 {[%clk 0:01:11.7]} 16. Be2 {[%clk 0:01:22.8]} 16...
f6 {[%clk 0:01:06.5]} 17. h4 {[%clk 0:01:20.9]} 17... Kf8 {[%clk 0:00:59.1]} 18.
h5 {[%clk 0:01:21.1]} 18... Nge5 {[%clk 0:00:58.7]} 19. Nxe5 {[%clk 0:01:21.4]}
19... Nxe5 {[%clk 0:00:59.6]} 20. f4 {[%clk 0:01:20]} 20... Nc6 {[%clk
0:00:57.7]} 21. h6 {[%clk 0:01:11.6]} 21... g6 {[%clk 0:00:57.8]} 22. g4 {[%clk
0:01:10.8]} 22... Ke7 {[%clk 0:00:57.2]} 23. Nxc8+ {[%clk 0:01:10.9]} 23...
Raxc8 {[%clk 0:00:58]} 24. Rhg1 {[%clk 0:00:59.9]} 24... g5 {[%clk 0:00:57.2]}
25. fxg5 {[%clk 0:00:52.4]} 25... fxg5 {[%clk 0:00:58.1]} 26. Rdf1 {[%clk
0:00:45.4]} 26... Ne5 {[%clk 0:00:56.7]} 27. Rh1 {[%clk 0:00:45.3]} 27... Rf8
{[%clk 0:00:55.1]} 28. Kd2 {[%clk 0:00:44.5]} 28... Rxf1 {[%clk 0:00:53.5]} 29.
Rxf1 {[%clk 0:00:43.3]} 29... Rf8 {[%clk 0:00:48.3]} 30. Rxf8 {[%clk 0:00:42.9]}
30... Kxf8 {[%clk 0:00:49.2]} 31. Ke3 {[%clk 0:00:43]} 31... Ke7 {[%clk
0:00:49.2]} 32. b4 {[%clk 0:00:42.2]} 32... Nf7 {[%clk 0:00:46.5]} 33. Kd4
{[%clk 0:00:41.7]} 33... Kd6 {[%clk 0:00:46.4]} 34. e5+ {[%clk 0:00:28.9]} 34...
Nxe5 {[%clk 0:00:44]} 35. Bd1 {[%clk 0:00:25]} 35... Nf7 {[%clk 0:00:42.3]} 36.
Bf3 {[%clk 0:00:24.6]} 36... b6 {[%clk 0:00:40.8]} 37. Bb7 {[%clk 0:00:21]}
37... a5 {[%clk 0:00:40.2]} 38. Ba6 {[%clk 0:00:17.5]} 38... Nxh6 {[%clk
0:00:28.7]} 39. Bxb5 {[%clk 0:00:17.7]} 39... Nxg4 {[%clk 0:00:29.2]} 40. a4
{[%clk 0:00:15.3]} 40... Ne5 {[%clk 0:00:25.8]} 41. Ke4 {[%clk 0:00:13.7]} 41...
h5 {[%clk 0:00:24.8]} 42. Be2 {[%clk 0:00:13.2]} 42... h4 {[%clk 0:00:23]} 43.
bxa5 {[%clk 0:00:07.4]} 43... bxa5 {[%clk 0:00:23.1]} 44. c4 {[%clk 0:00:08.3]}
44... Nc6 {[%clk 0:00:22.4]} 45. Bg4 {[%clk 0:00:07.1]} 45... Ne7 {[%clk
0:00:13.2]} 46. Kd4 {[%clk 0:00:04.9]} 46... Nc6+ {[%clk 0:00:09]} 47. Ke4
{[%clk 0:00:05.2]} 47... Ne7 {[%clk 0:00:07.9]} 48. Kd4 {[%clk 0:00:05.7]} 48...
Nf5+ {[%clk 0:00:07.5]} 49. Ke4 {[%clk 0:00:05.1]} 49... Kc5 {[%clk 0:00:08]}
50. Ke5 {[%clk 0:00:05]} 50... Ne3 {[%clk 0:00:05.7]} 51. Bf3 {[%clk 0:00:04.3]}
51... g4 {[%clk 0:00:05.8]} 52. Bh1 {[%clk 0:00:03]} 52... g3 {[%clk 0:00:06.4]}
53. Kf4 {[%clk 0:00:03.4]} 53... g2 {[%clk 0:00:06.8]} 54. Bxg2 {[%clk
0:00:04.1]} 54... Nxg2+ {[%clk 0:00:07.7]} 55. Kg4 {[%clk 0:00:04]} 55... Ne3+
{[%clk 0:00:07.6]} 56. Kh3 {[%clk 0:00:04.9]} 56... Nxc4 {[%clk 0:00:08.5]} 57.
Kxh4 {[%clk 0:00:05.6]} 57... Nb6 {[%clk 0:00:09.4]} 58. Kg4 {[%clk 0:00:06.5]}
58... Nxa4 {[%clk 0:00:10.3]} 59. Kf4 {[%clk 0:00:07.4]} 59... Kd4 {[%clk
0:00:10.4]} 0-1

[Event "Early-Titled-Tuesday-Blitz-March-12-2024"]
[Site "Chess.com"]
[Date "2024.03.12"]
[Round "10"]
[White "HansOnTwitch"]
[Black "dropstoneDP"]
[Result "1/2-1/2"]
[WhiteElo "3105"]
[BlackElo "3001"]
[TimeControl "180+1"]
[EndTime "9:53:35 PDT"]
[Termination "Game drawn by agreement"]

1. e4 {[%clk 0:02:49.8]} 1... e5 {[%clk 0:02:59.5]} 2. Nf3 {[%clk 0:02:48.4]}
2... Nf6 {[%clk 0:02:59.7]} 3. d3 {[%clk 0:02:44.2]} 3... Nc6 {[%clk 0:02:56.1]}
4. g3 {[%clk 0:02:43.9]} 4... d5 {[%clk 0:02:56.1]} 5. exd5 {[%clk 0:02:43.7]}
5... Nxd5 {[%clk 0:02:57]} 6. Bg2 {[%clk 0:02:43.9]} 6... Bd6 {[%clk 0:02:54.4]}
7. O-O {[%clk 0:02:43.7]} 7... O-O {[%clk 0:02:54.9]} 8. Nbd2 {[%clk 0:02:43.3]}
8... h6 {[%clk 0:02:51]} 9. Nc4 {[%clk 0:02:43.3]} 9... Re8 {[%clk 0:02:49.2]}
10. Re1 {[%clk 0:02:43.7]} 10... Nf6 {[%clk 0:02:30.2]} 11. Bd2 {[%clk
0:02:37.6]} 11... Bf5 {[%clk 0:02:22.6]} 12. Bc3 {[%clk 0:02:36.3]} 12... e4
{[%clk 0:02:17]} 13. dxe4 {[%clk 0:02:11.5]} 13... Nxe4 {[%clk 0:01:56.7]} 14.
Nxd6 {[%clk 0:02:10.8]} 14... Qxd6 {[%clk 0:01:53]} 15. Qxd6 {[%clk 0:02:09.1]}
15... Nxd6 {[%clk 0:01:53.9]} 16. Ne5 {[%clk 0:01:23.9]} 16... Nxe5 {[%clk
0:01:52.2]} 17. Bxe5 {[%clk 0:01:24.8]} 17... Rad8 {[%clk 0:01:27.2]} 18. c3
{[%clk 0:00:59.8]} 18... Re7 {[%clk 0:01:11.4]} 19. Bd4 {[%clk 0:00:49.4]} 19...
Rxe1+ {[%clk 0:01:05.2]} 20. Rxe1 {[%clk 0:00:50.3]} 20... b6 {[%clk 0:01:04.8]}
21. Bf1 {[%clk 0:00:50.3]} 21... Be6 {[%clk 0:01:02.4]} 22. b3 {[%clk
0:00:49.4]} 22... Nf5 {[%clk 0:00:54.4]} 23. Be5 {[%clk 0:00:47.8]} 23... c5
{[%clk 0:00:52.8]} 24. Bf4 {[%clk 0:00:47.1]} 24... Ne7 {[%clk 0:00:47.8]} 25.
Bc1 {[%clk 0:00:43.3]} 25... Kf8 {[%clk 0:00:43.5]} 26. f3 {[%clk 0:00:43.1]}
26... Nd5 {[%clk 0:00:41.4]} 27. Bb2 {[%clk 0:00:37.6]} 27... Nf6 {[%clk
0:00:39.4]} 28. Kf2 {[%clk 0:00:33.9]} 28... Rd2+ {[%clk 0:00:39.3]} 29. Re2
{[%clk 0:00:33.9]} 29... Rd1 {[%clk 0:00:39.9]} 30. c4 {[%clk 0:00:34.6]} 30...
Nd7 {[%clk 0:00:37.3]} 31. Bc3 {[%clk 0:00:30.8]} 31... Rc1 {[%clk 0:00:37.1]}
32. Bb2 {[%clk 0:00:29.2]} 32... Rd1 {[%clk 0:00:37]} 33. g4 {[%clk 0:00:27.4]}
33... a6 {[%clk 0:00:32.7]} 34. Bg2 {[%clk 0:00:20.6]} 34... b5 {[%clk 0:00:32]}
35. cxb5 {[%clk 0:00:20.1]} 35... axb5 {[%clk 0:00:32.9]} 36. Ke3 {[%clk
0:00:20.3]} 36... c4 {[%clk 0:00:31.7]} 37. bxc4 {[%clk 0:00:11.3]} 37... Bxc4
{[%clk 0:00:32.6]} 38. Rc2 {[%clk 0:00:11.9]} 38... Nb6 {[%clk 0:00:31.1]} 39.
a3 {[%clk 0:00:10.4]} 39... Nd5+ {[%clk 0:00:29.6]} 40. Kf2 {[%clk 0:00:11.1]}
40... Nf4 {[%clk 0:00:29.3]} 41. Kg3 {[%clk 0:00:10.7]} 41... g5 {[%clk
0:00:26.5]} 42. Be5 {[%clk 0:00:06.3]} 42... Ne2+ {[%clk 0:00:19.7]} 43. Kf2
{[%clk 0:00:05.8]} 43... Nc1 {[%clk 0:00:20.1]} 44. Bc3 {[%clk 0:00:02.4]} 44...
Nd3+ {[%clk 0:00:20.5]} 45. Kg3 {[%clk 0:00:02.8]} 45... Nf4 {[%clk 0:00:18.8]}
46. Be5 {[%clk 0:00:02.6]} 46... Nxg2 {[%clk 0:00:15.4]} 47. Kxg2 {[%clk
0:00:02.7]} 47... Rd3 {[%clk 0:00:16.3]} 48. Rc3 {[%clk 0:00:02.2]} 48... Rxc3
{[%clk 0:00:10.2]} 49. Bxc3 {[%clk 0:00:03.1]} 49... Kg8 {[%clk 0:00:10.6]} 50.
Kg3 {[%clk 0:00:03.7]} 50... Kh7 {[%clk 0:00:10.9]} 51. h4 {[%clk 0:00:04.4]}
51... gxh4+ {[%clk 0:00:11.2]} 52. Kxh4 {[%clk 0:00:05.3]} 52... Kg6 {[%clk
0:00:11.1]} 53. Kg3 {[%clk 0:00:05.3]} 53... f5 {[%clk 0:00:11.7]} 54. Bb4
{[%clk 0:00:06]} 54... fxg4 {[%clk 0:00:12.1]} 55. fxg4 {[%clk 0:00:06.9]} 55...
h5 {[%clk 0:00:12]} 56. gxh5+ {[%clk 0:00:07.8]} 56... Kxh5 {[%clk 0:00:12.8]}
57. Kf4 {[%clk 0:00:08.7]} 57... Bb3 {[%clk 0:00:13.4]} 58. Ke4 {[%clk
0:00:09.6]} 58... Ba4 {[%clk 0:00:13.2]} 59. Kd4 {[%clk 0:00:10.5]} 59... Kg4
{[%clk 0:00:13.8]} 60. Kc3 {[%clk 0:00:11.4]} 60... Kg5 {[%clk 0:00:14.2]} 61.
Bc5 {[%clk 0:00:12.3]} 61... Kg4 {[%clk 0:00:15.1]} 62. Kb4 {[%clk 0:00:13.2]}
62... Kg5 {[%clk 0:00:15.4]} 63. Ba7 {[%clk 0:00:14.1]} 63... Kg4 {[%clk
0:00:15.8]} 1/2-1/2

[Event "Early-Titled-Tuesday-Blitz-March-12-2024"]
[Site "Chess.com"]
[Date "2024.03.12"]
[Round "10"]
[White "Barmen_EV"]
[Black "Egor_Koshulyan"]
[Result "1-0"]
[WhiteElo "2547"]
[BlackElo "2746"]
[TimeControl "180+1"]
[EndTime "9:53:40 PDT"]
[Termination "Barmen_EV won by resignation"]

1. e4 {[%clk 0:03:00.9]} 1... c5 {[%clk 0:02:57.1]} 2. c3 {[%clk 0:03:00]} 2...
Qa5 {[%clk 0:02:57.2]} 3. Nf3 {[%clk 0:02:57.4]} 3... Nc6 {[%clk 0:02:56]} 4.
Be2 {[%clk 0:02:56.6]} 4... Nf6 {[%clk 0:02:49.6]} 5. e5 {[%clk 0:02:50.2]} 5...
Ng4 {[%clk 0:02:49.8]} 6. O-O {[%clk 0:02:50.6]} 6... Ngxe5 {[%clk 0:02:49.7]}
7. Nxe5 {[%clk 0:02:51.5]} 7... Nxe5 {[%clk 0:02:49.3]} 8. d4 {[%clk 0:02:52.1]}
8... Ng6 {[%clk 0:02:47.1]} 9. Na3 {[%clk 0:02:50.9]} 9... e6 {[%clk 0:02:26.2]}
10. dxc5 {[%clk 0:02:35.4]} 10... Qxc5 {[%clk 0:02:27.1]} 11. Be3 {[%clk
0:02:35]} 11... Qa5 {[%clk 0:02:09.1]} 12. Nb5 {[%clk 0:02:00.3]} 12... d5
{[%clk 0:02:07.1]} 13. c4 {[%clk 0:01:43.7]} 13... a6 {[%clk 0:02:04.5]} 14. Nc3
{[%clk 0:01:14.2]} 14... dxc4 {[%clk 0:02:01.8]} 15. Na4 {[%clk 0:01:08.2]}
15... Be7 {[%clk 0:01:26.6]} 16. Nb6 {[%clk 0:01:05.1]} 16... Rb8 {[%clk
0:01:27]} 17. Nxc4 {[%clk 0:01:00.8]} 17... Qd8 {[%clk 0:01:21.2]} 18. Qb3
{[%clk 0:00:36.3]} 18... O-O {[%clk 0:01:17]} 19. Rfd1 {[%clk 0:00:36.7]} 19...
Qe8 {[%clk 0:01:17.5]} 20. Nb6 {[%clk 0:00:26.7]} 20... Ne5 {[%clk 0:00:41.4]}
21. Bf4 {[%clk 0:00:26.2]} 21... f6 {[%clk 0:00:42]} 22. Rac1 {[%clk 0:00:24.2]}
22... Qf7 {[%clk 0:00:17.7]} 23. Bc4 {[%clk 0:00:14.3]} 23... Nxc4 {[%clk
0:00:16.7]} 24. Bxb8 {[%clk 0:00:14.3]} 24... Nxb6 {[%clk 0:00:11.3]} 25. Qxb6
{[%clk 0:00:15.2]} 25... e5 {[%clk 0:00:11.7]} 26. Rc7 {[%clk 0:00:14.2]} 26...
Be6 {[%clk 0:00:11.7]} 27. Qxb7 {[%clk 0:00:12.8]} 27... Re8 {[%clk 0:00:12.3]}
28. Rdc1 {[%clk 0:00:06.8]} 28... Bd5 {[%clk 0:00:08.2]} 29. Qxa6 {[%clk
0:00:04.7]} 29... Qg6 {[%clk 0:00:08.1]} 30. Qf1 {[%clk 0:00:05]} 30... Qg4
{[%clk 0:00:03.3]} 31. h3 {[%clk 0:00:03.7]} 31... Qe4 {[%clk 0:00:03.7]} 32.
Rc8 {[%clk 0:00:03.9]} 32... Rxc8 {[%clk 0:00:02.5]} 33. Rxc8+ {[%clk
0:00:04.8]} 33... Kf7 {[%clk 0:00:03.3]} 34. Rc3 {[%clk 0:00:05.3]} 34... Bb4
{[%clk 0:00:03.3]} 35. Re3 {[%clk 0:00:05.5]} 35... Qd4 {[%clk 0:00:03.2]} 36.
Qd3 {[%clk 0:00:03.8]} 36... Qc5 {[%clk 0:00:03]} 37. Ba7 {[%clk 0:00:02.2]}
37... Qc1+ {[%clk 0:00:03.2]} 38. Kh2 {[%clk 0:00:02.8]} 38... Be6 {[%clk
0:00:03.9]} 39. Bb6 {[%clk 0:00:02.3]} 39... Qc6 {[%clk 0:00:03.7]} 40. Ba7
{[%clk 0:00:02]} 40... Bd6 {[%clk 0:00:04.3]} 41. g3 {[%clk 0:00:02.2]} 41...
Bd5 {[%clk 0:00:04.1]} 42. Qc3 {[%clk 0:00:01.9]} 42... Qd7 {[%clk 0:00:04.1]}
43. Bc5 {[%clk 0:00:02.6]} 43... Bb8 {[%clk 0:00:03.4]} 44. Rd3 {[%clk
0:00:02.7]} 44... Qe6 {[%clk 0:00:03.3]} 45. Be3 {[%clk 0:00:03.1]} 45... Bb7
{[%clk 0:00:03]} 46. Qb3 {[%clk 0:00:03.2]} 46... Qxb3 {[%clk 0:00:02.3]} 47.
Rxb3 {[%clk 0:00:03.3]} 47... Bd5 {[%clk 0:00:02.9]} 48. Rxb8 {[%clk 0:00:03.6]}
48... Bxa2 {[%clk 0:00:03.8]} 49. Ra8 {[%clk 0:00:04.1]} 49... Bd5 {[%clk
0:00:03.8]} 50. Ra7+ {[%clk 0:00:05]} 50... Kg6 {[%clk 0:00:04.3]} 51. h4 {[%clk
0:00:05.6]} 51... f5 {[%clk 0:00:05.2]} 52. h5+ {[%clk 0:00:05.8]} 52... Kf6
{[%clk 0:00:05.8]} 53. Bc5 {[%clk 0:00:05.4]} 53... e4 {[%clk 0:00:05.4]} 54.
Be7+ {[%clk 0:00:05.7]} 54... Ke6 {[%clk 0:00:05.8]} 55. Bg5 {[%clk 0:00:06]}
55... g6 {[%clk 0:00:05.7]} 56. hxg6 {[%clk 0:00:06.5]} 56... hxg6 {[%clk
0:00:06.6]} 57. Be3 {[%clk 0:00:07.2]} 57... g5 {[%clk 0:00:06.6]} 58. Bxg5
{[%clk 0:00:06.8]} 58... e3 {[%clk 0:00:07.3]} 59. Bxe3 {[%clk 0:00:07.2]} 59...
f4 {[%clk 0:00:07.8]} 60. Bxf4 {[%clk 0:00:07.5]} 1-0

[Event "Early-Titled-Tuesday-Blitz-March-12-2024"]
[Site "Chess.com"]
[Date "2024.03.12"]
[Round "10"]
[White "RandomNoob04"]
[Black "sokidze"]
[Result "0-1"]
[WhiteElo "2619"]
[BlackElo "2777"]
[TimeControl "180+1"]
[EndTime "9:53:40 PDT"]
[Termination "sokidze won by resignation"]

1. e4 {[%clk 0:03:00.9]} 1... e5 {[%clk 0:03:00.4]} 2. d4 {[%clk 0:03:01.3]}
2... exd4 {[%clk 0:03:00.2]} 3. Qxd4 {[%clk 0:03:02.2]} 3... Nc6 {[%clk
0:03:00.2]} 4. Qe3 {[%clk 0:03:02.9]} 4... Nf6 {[%clk 0:02:54.5]} 5. e5 {[%clk
0:03:03.5]} 5... Nd5 {[%clk 0:02:23.4]} 6. Qe4 {[%clk 0:03:04]} 6... Nb6 {[%clk
0:02:22.6]} 7. Nf3 {[%clk 0:03:04.5]} 7... Be7 {[%clk 0:02:18.9]} 8. Nc3 {[%clk
0:03:04.8]} 8... O-O {[%clk 0:02:00.6]} 9. Bd3 {[%clk 0:03:04.6]} 9... g6 {[%clk
0:02:00.9]} 10. Bh6 {[%clk 0:03:05.3]} 10... Re8 {[%clk 0:02:00.9]} 11. O-O-O
{[%clk 0:03:06]} 11... d5 {[%clk 0:01:58.5]} 12. Qf4 {[%clk 0:03:05.9]} 12...
Nb4 {[%clk 0:01:52.2]} 13. Ng5 {[%clk 0:03:04]} 13... Be6 {[%clk 0:01:29.6]} 14.
h4 {[%clk 0:03:00.4]} 14... Bf8 {[%clk 0:00:53.2]} 15. Bxf8 {[%clk 0:02:57.5]}
15... Nxd3+ {[%clk 0:00:53.3]} 16. Rxd3 {[%clk 0:02:57]} 16... Rxf8 {[%clk
0:00:53.8]} 17. Nce4 {[%clk 0:02:40.2]} 17... Nd7 {[%clk 0:00:44]} 18. Ng3
{[%clk 0:01:44.1]} 18... h6 {[%clk 0:00:35.1]} 19. Nxe6 {[%clk 0:01:42.1]} 19...
fxe6 {[%clk 0:00:36]} 20. Qxh6 {[%clk 0:01:42.9]} 20... Nxe5 {[%clk 0:00:35.6]}
21. Rd2 {[%clk 0:01:13]} 21... Qf6 {[%clk 0:00:34.5]} 22. f3 {[%clk 0:01:06.7]}
22... Nc4 {[%clk 0:00:32.6]} 23. h5 {[%clk 0:00:30.6]} 23... Qxb2+ {[%clk
0:00:30.5]} 24. Kd1 {[%clk 0:00:31.2]} 24... Qa1+ {[%clk 0:00:29.1]} 25. Ke2
{[%clk 0:00:30.9]} 25... Qe5+ {[%clk 0:00:29.7]} 26. Kf2 {[%clk 0:00:30.1]}
26... Nxd2 {[%clk 0:00:24.3]} 27. hxg6 {[%clk 0:00:21.7]} 27... Qd4+ {[%clk
0:00:22.8]} 28. Ke2 {[%clk 0:00:22.2]} 28... Qg7 {[%clk 0:00:21]} 29. Qh3 {[%clk
0:00:17.7]} 29... Qxg6 {[%clk 0:00:11.6]} 30. Kxd2 {[%clk 0:00:18.2]} 30... Kf7
{[%clk 0:00:08.8]} 31. Qh4 {[%clk 0:00:11.3]} 31... Rh8 {[%clk 0:00:06.9]} 32.
Qf4+ {[%clk 0:00:11.1]} 32... Qf6 {[%clk 0:00:06.1]} 33. Qxc7+ {[%clk
0:00:11.1]} 33... Kg6 {[%clk 0:00:05.1]} 34. Re1 {[%clk 0:00:05]} 34... Rh7
{[%clk 0:00:03.9]} 35. Qc5 {[%clk 0:00:03.9]} 35... Qg5+ {[%clk 0:00:03.5]} 36.
Qe3 {[%clk 0:00:02.3]} 36... Qxe3+ {[%clk 0:00:03.4]} 37. Rxe3 {[%clk
0:00:02.3]} 37... Re8 {[%clk 0:00:04.3]} 38. Re2 {[%clk 0:00:02.2]} 38... Kf7
{[%clk 0:00:04.3]} 39. Nf1 {[%clk 0:00:02.7]} 39... Rg8 {[%clk 0:00:04.1]} 40.
Ne3 {[%clk 0:00:02.9]} 40... b5 {[%clk 0:00:04.3]} 41. Ng4 {[%clk 0:00:03.6]}
41... Rg5 {[%clk 0:00:03.9]} 42. Ne5+ {[%clk 0:00:03.7]} 42... Kf6 {[%clk
0:00:04.3]} 43. f4 {[%clk 0:00:03.1]} 43... Rg3 {[%clk 0:00:04.6]} 44. Nd3
{[%clk 0:00:02.8]} 44... Rhg7 {[%clk 0:00:04.4]} 45. Nc5 {[%clk 0:00:02.9]}
45... Rxg2 {[%clk 0:00:03]} 46. Nd7+ {[%clk 0:00:03.4]} 46... Ke7 {[%clk
0:00:02.4]} 47. Ne5 {[%clk 0:00:02.6]} 47... Rxe2+ {[%clk 0:00:02.7]} 48. Kxe2
{[%clk 0:00:03.5]} 48... Kf6 {[%clk 0:00:03.4]} 49. Kd3 {[%clk 0:00:04.4]} 49...
Kf5 {[%clk 0:00:03.8]} 50. Nf3 {[%clk 0:00:05]} 50... Rg3 {[%clk 0:00:03.6]} 51.
Ke3 {[%clk 0:00:05.1]} 51... Kg4 {[%clk 0:00:04.2]} 52. Kd4 {[%clk 0:00:04.5]}
52... Rxf3 {[%clk 0:00:04.4]} 53. f5 {[%clk 0:00:05.4]} 53... Rxf5 {[%clk
0:00:04.5]} 0-1

[Event "Early-Titled-Tuesday-Blitz-March-12-2024"]
[Site "Chess.com"]
[Date "2024.03.12"]
[Round "10"]
[White "AnishOnYoutube"]
[Black "LiamPutnam2008"]
[Result "1-0"]
[WhiteElo "3047"]
[BlackElo "2894"]
[TimeControl "180+1"]
[EndTime "9:53:49 PDT"]
[Termination "AnishOnYoutube won by checkmate"]

1. d4 {[%clk 0:03:00.9]} 1... Nf6 {[%clk 0:02:58.2]} 2. c4 {[%clk 0:03:01.4]}
2... e6 {[%clk 0:02:57.4]} 3. Nf3 {[%clk 0:03:01.8]} 3... b6 {[%clk 0:02:57.4]}
4. g3 {[%clk 0:03:01.9]} 4... Ba6 {[%clk 0:02:57.5]} 5. b3 {[%clk 0:02:58.9]}
5... Bb4+ {[%clk 0:02:55]} 6. Bd2 {[%clk 0:02:59.2]} 6... Be7 {[%clk 0:02:55.7]}
7. Bg2 {[%clk 0:02:59.5]} 7... c6 {[%clk 0:02:54.5]} 8. O-O {[%clk 0:02:57.2]}
8... O-O {[%clk 0:02:54.5]} 9. Qc2 {[%clk 0:02:56.9]} 9... d5 {[%clk 0:02:54.9]}
10. a4 {[%clk 0:02:57.4]} 10... Nbd7 {[%clk 0:02:50]} 11. a5 {[%clk 0:02:56.6]}
11... Ne4 {[%clk 0:02:48.8]} 12. Rc1 {[%clk 0:02:46]} 12... Nxd2 {[%clk
0:02:22.8]} 13. Nbxd2 {[%clk 0:02:46]} 13... Bb4 {[%clk 0:02:23.5]} 14. axb6
{[%clk 0:02:37.7]} 14... axb6 {[%clk 0:02:24.4]} 15. e4 {[%clk 0:02:37.3]} 15...
Nf6 {[%clk 0:02:12]} 16. e5 {[%clk 0:02:31.5]} 16... Nd7 {[%clk 0:02:11.1]} 17.
cxd5 {[%clk 0:02:25.7]} 17... cxd5 {[%clk 0:02:12]} 18. Bf1 {[%clk 0:02:23.3]}
18... Bxf1 {[%clk 0:02:10.2]} 19. Nxf1 {[%clk 0:02:23.2]} 19... Qe7 {[%clk
0:02:01.1]} 20. Qc7 {[%clk 0:02:10.1]} 20... h6 {[%clk 0:01:24.7]} 21. Rxa8
{[%clk 0:02:04.7]} 21... Rxa8 {[%clk 0:01:25.6]} 22. Qb7 {[%clk 0:02:04.9]}
22... Rb8 {[%clk 0:01:16.8]} 23. Qa7 {[%clk 0:02:00.8]} 23... Qe8 {[%clk
0:00:56.9]} 24. Qa4 {[%clk 0:01:34.1]} 24... Bf8 {[%clk 0:00:53.4]} 25. Rc7
{[%clk 0:01:28.9]} 25... b5 {[%clk 0:00:47.7]} 26. Qa7 {[%clk 0:01:28.6]} 26...
Ra8 {[%clk 0:00:42.7]} 27. Qb7 {[%clk 0:01:27]} 27... Rb8 {[%clk 0:00:38.8]} 28.
Qc6 {[%clk 0:01:20.9]} 28... Rd8 {[%clk 0:00:39.2]} 29. Kg2 {[%clk 0:01:05.9]}
29... b4 {[%clk 0:00:38.9]} 30. Ne3 {[%clk 0:01:04.4]} 30... Nb8 {[%clk
0:00:38.4]} 31. Qb7 {[%clk 0:01:03.5]} 31... Rd7 {[%clk 0:00:37.9]} 32. h4
{[%clk 0:00:57.8]} 32... Rxc7 {[%clk 0:00:34]} 33. Qxc7 {[%clk 0:00:58.2]} 33...
Qb5 {[%clk 0:00:34.7]} 34. g4 {[%clk 0:00:51.6]} 34... Na6 {[%clk 0:00:26.3]}
35. Qc8 {[%clk 0:00:51.3]} 35... Nb8 {[%clk 0:00:19.2]} 36. g5 {[%clk
0:00:50.5]} 36... hxg5 {[%clk 0:00:19.9]} 37. Nxg5 {[%clk 0:00:38.6]} 37... Qb6
{[%clk 0:00:20.3]} 38. Qe8 {[%clk 0:00:29.2]} 38... Qb7 {[%clk 0:00:17.1]} 39.
h5 {[%clk 0:00:27.1]} 39... Nc6 {[%clk 0:00:14.8]} 40. Nxe6 {[%clk 0:00:21.1]}
40... fxe6 {[%clk 0:00:14.6]} 41. Qxe6+ {[%clk 0:00:22]} 41... Kh8 {[%clk
0:00:14.5]} 42. Qe8 {[%clk 0:00:17.6]} 42... Kg8 {[%clk 0:00:12.2]} 43. Qe6+
{[%clk 0:00:14.8]} 43... Kh8 {[%clk 0:00:11.3]} 44. Qxd5 {[%clk 0:00:15.4]}
44... Qc8 {[%clk 0:00:10.5]} 45. Qe4 {[%clk 0:00:13.6]} 45... Qd7 {[%clk
0:00:08.3]} 46. d5 {[%clk 0:00:13.4]} 46... Ne7 {[%clk 0:00:08]} 47. d6 {[%clk
0:00:12.8]} 47... Ng8 {[%clk 0:00:07.6]} 48. Nd5 {[%clk 0:00:10.9]} 48... Qe6
{[%clk 0:00:07.1]} 49. f3 {[%clk 0:00:08.7]} 49... Nh6 {[%clk 0:00:05.2]} 50.
Nf4 {[%clk 0:00:08.5]} 50... Qxb3 {[%clk 0:00:05]} 51. Ng6+ {[%clk 0:00:08.4]}
51... Kg8 {[%clk 0:00:05.7]} 52. d7 {[%clk 0:00:07.5]} 52... Qa2+ {[%clk
0:00:04.8]} 53. Kg3 {[%clk 0:00:07.9]} 53... Qd2 {[%clk 0:00:03.8]} 54. Qc4+
{[%clk 0:00:07.3]} 54... Nf7 {[%clk 0:00:03.5]} 55. f4 {[%clk 0:00:02.2]} 55...
Qe3+ {[%clk 0:00:03.4]} 56. Kg4 {[%clk 0:00:02.4]} 56... Qg1+ {[%clk 0:00:03.5]}
57. Kf5 {[%clk 0:00:02.9]} 57... Qb1+ {[%clk 0:00:02.7]} 58. Ke6 {[%clk
0:00:03.2]} 58... Qd1 {[%clk 0:00:02.1]} 59. Ne7+ {[%clk 0:00:02.2]} 59... Bxe7
{[%clk 0:00:02.3]} 60. Kxe7 {[%clk 0:00:03.1]} 60... Kh7 {[%clk 0:00:02.3]} 61.
Qxf7 {[%clk 0:00:02.7]} 61... b3 {[%clk 0:00:02.5]} 62. Qg6+ {[%clk 0:00:02.8]}
62... Kh8 {[%clk 0:00:02.8]} 63. d8=Q+ {[%clk 0:00:03.4]} 63... Qxd8+ {[%clk
0:00:03.2]} 64. Kxd8 {[%clk 0:00:04.3]} 64... b2 {[%clk 0:00:03.9]} 65. Ke7
{[%clk 0:00:04.5]} 65... b1=Q {[%clk 0:00:04.2]} 66. Qxb1 {[%clk 0:00:05.1]}
66... g5 {[%clk 0:00:04.8]} 67. Qg6 {[%clk 0:00:04.4]} 67... gxf4 {[%clk
0:00:04.8]} 68. Kf7 {[%clk 0:00:05.3]} 68... f3 {[%clk 0:00:05]} 69. Qh6# {[%clk
0:00:06.2]} 1-0